bitfinex-derivatives/quotes_ETHF0:USTF0_20250607
["timestamp","ask_amount","ask_price","bid_price","bid_amount"]
[1749302758362,5.7479,2507.3,2507.2,0.79732]
[1749302758668,5.093,2507.3,2507.2,0.79732]
[1749302758866,5.89028,2507.3,2507.2,0.79732]
[1749302759067,0.79728,2507.3,2507.2,0.79732]
[1749302759363,5.093,2507.3,2507.2,0.79732]
[1749302761958,0.00597395,2507.4,2507.3,0.79728]
[1749302762267,0.80322395,2507.4,2507.3,4.00508]
[1749302766367,0.80322395,2507.4,2507.3,3.2078]
[1749302766767,0.79735,2507.1,2507.0,3.2078]
[1749302767170,2.66494,2507.3,2506.8,1.45162]
[1749302767471,0.79741,2506.9,2506.8,1.45162]
[1749302767665,0.79741,2506.9,2506.7,3.2078]
[1749302767666,0.79744,2506.8,2506.7,3.2078]
[1749302767870,0.79742,2506.9,2506.8,0.79744]
[1749302768674,1.44129,2507.0,2506.8,0.79742]
[1749302769677,1.44129,2507.0,2506.9,0.79741]
[1749302769968,0.79744,2506.8,2506.7,3.2078]
[1749302770569,0.79757,2506.4,2506.3,4.0054]
[1749302770770,3.39461,2506.9,2506.3,4.0054]
[1749302770771,0.79757,2506.5,2506.3,4.0054]
[1749302770969,0.6582,2506.4,2506.3,4.0054]
[1749302771173,1.45577,2506.4,2506.3,3.2078]
[1749302772070,1.45577,2506.4,2506.3,4.0054]
[1749302773176,0.6948,2506.6,2506.5,0.79754]
[1749302773376,5.074,2506.7,2506.6,0.79751]
[1749302773674,5.87148,2506.7,2506.6,0.79751]
[1749302774070,5.074,2506.7,2506.3,3.2078]
[1749302774277,6.3518,2506.7,2506.3,4.00538]
[1749302774478,0.79756,2506.5,2506.3,3.2078]
[1749302774776,0.79756,2506.5,2506.4,0.79757]
[1749302774971,0.79757,2506.4,2506.3,3.2078]
[1749302775174,1.49587,2506.4,2506.3,4.0054]
[1749302775376,0.6983,2506.4,2506.3,4.0054]
[1749302776380,1.49587,2506.4,2506.3,4.0054]
[1749302777974,1.49587,2506.4,2506.3,0.7976]
[1749302779866,1.49587,2506.4,2506.2,0.79761]
[1749302780070,1.49587,2506.4,2506.3,0.7976]
[1749302780679,1.49587,2506.4,2506.1,0.6504]
[1749302780977,1.49587,2506.4,2506.3,0.7976]
[1749302781367,0.7976,2506.3,2506.2,0.79761]
[1749302781567,0.79763,2506.2,2506.0,3.2078]
[1749302781780,0.6983,2506.4,2506.1,0.79766]
[1749302781970,0.79766,2506.2,2506.1,0.79766]
[1749302782173,0.79767,2506.1,2506.0,4.00548]
[1749302782684,0.79765,2506.2,2506.0,3.2078]
[1749302782879,0.79763,2506.2,2506.0,3.2078]
[1749302783078,0.79763,2506.2,2506.1,0.79767]
[1749302783278,0.79767,2506.1,2506.0,3.2078]
[1749302783470,0.79767,2506.1,2506.0,4.0055]
[1749302784177,2.09886,2506.2,2506.1,0.79767]
[1749302784373,0.6983,2506.4,2506.0,3.2078]
[1749302784685,5.074,2506.3,2506.2,0.79763]
[1749302784878,5.074,2506.5,2506.4,0.79757]
[1749302785078,5.87154,2506.5,2506.4,0.79757]
[1749302785579,0.79757,2506.4,2506.3,1.48068]
[1749302785883,5.87155,2506.5,2506.4,0.79757]
[1749302786087,5.074,2506.5,2506.4,0.79757]
[1749302786475,0.79757,2506.4,2506.3,1.48069]
[1749302787976,5.074,2506.5,2506.3,0.6831]
[1749302788176,0.79757,2506.4,2506.3,1.48069]
[1749302789885,0.7976,2506.3,2506.2,4.00542]
[1749302790085,0.7976,2506.3,2506.2,3.2078]
[1749302791275,2.1563,2506.3,2506.2,3.2078]
[1749302791485,0.7977,2506.0,2505.9,4.00551]
[1749302791678,0.7977,2506.0,2505.9,3.2078]
[1749302792077,0.6769,2506.2,2505.9,3.2078]
[1749302792288,5.074,2506.1,2505.9,3.2078]
[1749302792493,5.074,2506.1,2506.0,0.6789]
[1749302792784,5.87168,2506.1,2506.0,0.6789]
[1749302792986,5.87168,2506.1,2505.9,3.2078]
[1749302792987,0.7977,2506.0,2505.9,3.2078]
[1749302798688,2.1807,2506.0,2505.9,3.2078]
[1749302799391,0.79776,2505.9,2505.7,0.79779]
[1749302799591,2.18072,2506.0,2505.8,4.00556]
[1749302799795,0.79773,2505.9,2505.8,4.00556]
[1749302799988,0.7977,2506.0,2505.9,0.79771]
[1749302800289,0.80365599,2506.1,2506.0,0.7977]
[1749302800590,5.06198599,2506.1,2506.0,0.7977]
[1749302801286,5.85965599,2506.1,2506.0,0.7977]
[1749302801490,5.06198599,2506.1,2505.9,0.79771]
[1749302801690,5.85966599,2506.1,2506.0,0.7977]
[1749302802088,5.85965599,2506.1,2506.0,0.7977]
[1749302802288,0.79771,2506.0,2505.9,0.79771]
[1749302802491,5.85967599,2506.1,2506.0,0.7977]
[1749302803191,5.06198599,2506.1,2506.0,0.7977]
[1749302803989,5.85965599,2506.1,2506.0,0.7977]
[1749302804989,5.06198599,2506.1,2506.0,0.7977]
[1749302805689,0.00598599,2506.1,2506.0,0.7977]
[1749302806191,0.00598599,2506.1,2506.0,4.5301201]
[1749302806493,0.00598599,2506.1,2506.0,5.1966201]
[1749302808596,0.00598599,2506.1,2506.0,2.8099]
[1749302810394,0.00598599,2506.1,2506.0,1.4642]
[1749302810596,0.00598599,2506.1,2506.0,2.7531]
[1749302821401,0.00598599,2506.1,2506.0,1.4642]
[1749302821600,0.80365599,2506.1,2506.0,1.4642]
[1749302821997,0.00598599,2506.1,2506.0,1.4642]
[1749302822497,0.69168599,2506.1,2506.0,1.4642]
[1749302822692,0.00598599,2506.1,2506.0,1.4642]
[1749302823100,0.00598599,2506.1,2506.0,2.749]
[1749302825504,0.80365599,2506.1,2506.0,0.7977]
[1749302826201,0.79772,2506.0,2505.9,0.7977]
[1749302826402,1.43822,2506.0,2505.9,0.7977]
[1749302826900,2.76652,2506.0,2505.9,0.7977]
[1749302827100,1.9688,2506.0,2505.9,0.7977]
[1749302827296,2.7665,2506.0,2505.9,0.7977]
[1749302827493,2.7665,2506.0,2505.8,5.59413232]
[1749302827698,2.12603,2505.9,2505.8,5.59413232]
[1749302827890,1.3283,2505.9,2505.8,6.39189232]
[1749302828292,2.12603,2505.9,2505.8,2.38633232]
[1749302828799,0.79776,2505.8,2505.6,3.18414232]
[1749302828994,0.6467,2505.7,2505.6,3.18414232]
[1749302829500,2.0272,2505.7,2505.6,0.79781]
[1749302829808,2.0272,2505.7,2505.6,3.18442686]
[1749302830499,0.6405,2506.0,2505.9,0.79773]
[1749302830704,0.6405,2506.0,2505.9,5.59653584]
[1749302831206,0.6405,2506.0,2505.9,6.39214686]
[1749302834105,0.6405,2506.0,2505.9,4.00553]
[1749302834302,0.00598599,2506.1,2505.9,3.2078]
[1749302834505,0.00598599,2506.1,2506.0,0.7977]
[1749302835009,0.00598599,2506.1,2506.0,3.9584272]
[1749302836601,0.00598599,2506.1,2506.0,0.7977]
[1749302837201,0.00598599,2506.1,2506.0,3.9584272]
[1749302837510,0.00598599,2506.1,2506.0,0.7977]
[1749302838006,0.00598599,2506.1,2506.0,3.9584272]
[1749302838708,0.00598599,2506.1,2506.0,5.2950272]
[1749302840608,0.00598599,2506.1,2506.0,3.9584272]
[1749302841709,0.00598599,2506.1,2506.0,7.1662272]
[1749302842310,0.00598599,2506.1,2506.0,4.0055]
[1749302843709,0.07489771,2506.1,2506.0,4.0055]
[1749302844612,0.07489771,2506.1,2506.0,7.1662272]
[1749302851114,0.87256771,2506.1,2506.0,4.0055]
[1749302851507,0.87256771,2506.1,2506.0,3.2078]
[1749302852307,0.87256771,2506.1,2506.0,4.0055]
[1749302852706,0.87256771,2506.1,2506.0,3.2078]
[1749302853208,0.87256771,2506.1,2506.0,4.0055]
[1749302853604,0.87256771,2506.1,2506.0,3.2078]
[1749302854614,5.90956771,2506.1,2506.0,2.38865815]
[1749302854807,0.7977,2506.0,2505.9,2.38865815]
[1749302855012,0.79773,2505.9,2505.8,2.38865815]
[1749302855313,0.79776,2505.8,2505.7,3.2078]
[1749302855508,1.2957,2506.0,2505.9,0.79773]
[1749302855708,1.2957,2506.0,2505.9,3.18643233]
[1749302856716,2.0934,2506.0,2505.9,3.18643233]
[1749302858912,1.2957,2506.0,2505.9,3.18643233]
[1749302859107,2.0934,2506.0,2505.9,3.18643233]
[1749302859305,1.2957,2506.0,2505.9,3.18643233]
[1749302860512,2.0934,2506.0,2505.9,3.18643233]
[1749302860912,1.2957,2506.0,2505.9,3.18643233]
[1749302861217,0.6401,2506.0,2505.9,3.18643233]
[1749302861520,5.09489771,2506.1,2506.0,0.7977]
[1749302861716,5.09489771,2506.1,2506.0,6.39482089]
[1749302862111,5.09489771,2506.1,2506.0,4.0055]
[1749302862508,5.89256771,2506.1,2506.0,4.0055]
[1749302862712,5.09489771,2506.1,2506.0,4.0055]
[1749302865618,5.09489771,2506.1,2506.0,0.7977]
[1749302865816,5.09489771,2506.1,2506.0,4.0055]
[1749302866720,5.89256771,2506.1,2506.0,4.0055]
[1749302866914,5.09489771,2506.1,2506.0,4.0055]
[1749302868417,5.89256771,2506.1,2506.0,4.0055]
[1749302868616,5.09489771,2506.1,2506.0,4.0055]
[1749302869513,0.07489771,2506.1,2506.0,4.0055]
[1749302869918,0.07489771,2506.1,2506.0,5.4045]
[1749302870118,0.07489771,2506.1,2506.0,8.5652272]
[1749302877626,0.07489771,2506.1,2506.0,27.3232272]
[1749302880331,0.07489771,2506.1,2506.0,27.3202272]
[1749302880728,0.07489771,2506.1,2506.0,4.0055]
[1749302880929,0.87256771,2506.1,2506.0,3.2078]
[1749302881134,2.05039771,2506.1,2506.0,5.59741975]
[1749302881325,2.84807771,2506.1,2506.0,2.38961975]
[1749302881527,2.84807771,2506.1,2506.0,0.7977]
[1749302881731,0.79772,2506.0,2505.9,0.79771]
[1749302882132,2.84807771,2506.1,2506.0,0.7977]
[1749302882335,2.84807771,2506.1,2506.0,4.0055]
[1749302882336,2.05039771,2506.1,2506.0,4.0055]
[1749302883439,2.84806771,2506.1,2506.0,4.0055]
[1749302883839,2.05039771,2506.1,2506.0,4.0055]
[1749302884139,0.76859771,2506.1,2506.0,4.0055]
[1749302887937,1.56626771,2506.1,2506.0,4.0055]
[1749302888241,0.76859771,2506.1,2506.0,4.0055]
[1749302889541,1.56626771,2506.1,2506.0,3.2078]
[1749302889837,2.96856771,2506.1,2506.0,4.0055]
[1749302892142,2.96856771,2506.1,2506.0,3.2078]
[1749302892337,2.96856771,2506.1,2506.0,4.0055]
[1749302894245,2.96856771,2506.1,2506.0,3.2078]
[1749302895046,2.96856771,2506.1,2506.0,4.0055]
[1749302899948,0.76859771,2506.1,2506.0,4.0055]
[1749302900247,1.56626771,2506.1,2506.0,4.0055]
[1749302900449,0.76859771,2506.1,2506.0,4.0055]
[1749302901038,1.56626771,2506.1,2506.0,4.0055]
[1749302902050,0.76859771,2506.1,2506.0,4.0055]
[1749302903353,0.07489771,2506.1,2506.0,4.0055]
[1749302905254,0.87256771,2506.1,2506.0,4.0055]
[1749302906458,0.07489771,2506.1,2506.0,4.0055]
[1749302907056,0.07489771,2506.1,2506.0,4.6656]
[1749302907955,0.87256771,2506.1,2506.0,4.6656]
[1749302908658,0.07489771,2506.1,2506.0,4.6656]
[1749302909859,0.07489771,2506.1,2506.0,5.9889]
[1749302913261,0.07489771,2506.1,2506.0,1.9834]
[1749302913455,0.7977,2506.0,2505.9,3.1607272]
[1749302913659,1.4599,2506.0,2505.9,0.79773]
[1749302914059,0.6622,2506.0,2505.9,0.79773]
[1749302914456,0.87258771,2506.1,2505.8,4.4933272]
[1749302914457,0.07489771,2506.1,2506.0,0.7977]
[1749302914652,0.07489771,2506.1,2506.0,4.0055]
[1749302918669,0.87256771,2506.1,2506.0,3.2078]
[1749302921167,0.87256771,2506.1,2505.9,0.79771]
[1749302921866,0.87256771,2506.1,2506.0,0.7977]
[1749302922263,0.7977,2506.0,2505.9,0.79771]
[1749302923061,0.7977,2506.0,2505.9,4.00551]
[1749302924364,0.87258771,2506.1,2506.0,0.7977]
[1749302926766,0.7977,2506.0,2505.9,4.00551]
[1749302930766,2.061,2506.0,2505.9,4.00551]
[1749302930971,2.12991172,2506.0,2505.9,4.00551]
[1749302932969,0.86661172,2506.0,2505.9,4.00551]
[1749302937074,0.86661172,2506.0,2505.9,0.79771]
[1749302940270,0.06891172,2506.0,2505.9,0.79771]
[1749302940577,0.86661172,2506.0,2505.9,0.79771]
[1749302941177,0.06891172,2506.0,2505.9,0.79771]
[1749302942974,4.984,2506.6,2505.8,22.5531272]
[1749302943179,0.79764,2506.2,2506.1,0.79764]
[1749302943377,1.74738963,2506.2,2506.1,1.45714]
[1749302945676,1.74742395,2506.2,2506.1,1.45714]
[1749302946177,0.94978395,2506.2,2506.1,1.45714]
[1749302946377,1.48422,2506.3,2506.2,0.79763]
[1749302946571,2.43395181,2506.3,2506.2,0.79763]
[1749302949283,0.79763,2506.2,2506.1,1.45714]
[1749302950277,1.48423,2506.3,2506.2,0.79763]
[1749302950579,2.43367693,2506.3,2506.2,0.79763]
[1749302951086,1.48423,2506.3,2506.2,0.79763]
[1749302951283,2.43366692,2506.3,2506.2,0.79763]
[1749302952684,0.79763,2506.2,2506.1,1.45714]
[1749302955985,0.79762,2506.3,2506.2,0.7976]
[1749302956587,1.74650132,2506.3,2506.2,0.7976]
[1749302959395,1.81541304,2506.3,2506.2,0.7976]
[1749302962591,2.45291304,2506.3,2506.2,0.7976]
[1749302968898,2.45291304,2506.3,2506.2,4.0054]
[1749302970698,2.45291304,2506.3,2506.2,3.2078]
[1749302971793,2.45291304,2506.3,2506.2,4.00543]
[1749302972995,1.50403172,2506.3,2506.2,4.00543]
[1749302973196,2.46569889,2506.3,2506.2,4.00543]
[1749302973802,0.70641172,2506.3,2506.2,4.00543]
[1749302975499,1.50401172,2506.3,2506.2,4.00543]
[1749302978104,1.50401172,2506.3,2506.2,3.2078]
[1749302979901,1.50401172,2506.3,2506.2,4.00543]
[1749302982912,0.7977,2506.0,2505.9,0.00598599]
[1749302983106,5.7467,2506.0,2505.9,0.00598599]
[1749302983306,6.71009634,2506.0,2505.9,0.00598599]
[1749302983505,8.67479634,2506.0,2505.9,0.00598599]
[1749302987413,0.7977,2506.0,2505.9,3.21378599]
[1749302988411,0.7977,2506.0,2505.9,4.01151599]
[1749302989226,6.39139,2506.1,2506.0,0.7977]
[1749302989415,7.37090348,2506.1,2506.0,0.7977]
[1749302989614,6.39139,2506.1,2506.0,1.4657]
[1749302990014,7.37099785,2506.1,2506.0,1.4657]
[1749302990316,7.37023373,2506.1,2506.0,0.668]
[1749302990919,2.42123373,2506.1,2506.0,0.668]
[1749302991111,7.37023373,2506.1,2506.0,0.668]
[1749302993120,2.42123373,2506.1,2506.0,1.4657]
[1749302993319,1.44239,2506.1,2506.0,1.4657]
[1749302994920,1.44239,2506.1,2506.0,4.6735]
[1749302995116,0.79762,2506.3,2506.2,0.79762]
[1749302995312,0.79766,2506.1,2506.0,3.51507]
[1749302995516,0.79766,2506.1,2506.0,2.7174]
[1749302996314,0.79766,2506.1,2506.0,3.5151]
[1749302996518,0.79765,2506.2,2506.1,0.79766]
[1749302997622,0.79766,2506.1,2506.0,6.72287]
[1749302998926,0.79766,2506.1,2506.0,3.51507]
[1749303000020,0.79766,2506.1,2506.0,6.72287]
[1749303000325,0.79766,2506.2,2506.1,0.79766]
[1749303000524,0.79766,2506.1,2506.0,6.72288]
[1749303001416,0.79765,2506.2,2506.1,0.79766]
[1749303001621,5.74664,2506.2,2506.1,0.79766]
[1749303001823,0.80356599,2506.4,2506.3,0.7976]
[1749303002122,0.80356599,2506.4,2506.3,4.0054]
[1749303002727,0.00598599,2506.4,2506.3,4.0054]
[1749303004826,0.00598599,2506.4,2506.3,4.6837]
[1749303005032,0.07489771,2506.4,2506.3,6.0788]
[1749303005827,0.07489771,2506.4,2506.3,11.0788]
[1749303009335,1.4308,2507.0,2506.9,0.79741]
[1749303009535,0.6334,2507.0,2506.9,4.00521]
[1749303009829,1.43078,2507.0,2506.9,4.00521]
[1749303010436,1.43078,2507.0,2506.9,3.2078]
[1749303011729,1.43078,2507.0,2506.9,4.00521]
[1749303013629,7.66725055,2507.1,2507.0,0.79738]
[1749303013835,0.79736,2507.1,2507.0,0.79736]
[1749303014030,0.79736,2507.1,2507.0,1.45806]
[1749303014736,1.99274,2507.9,2507.0,0.6607]
[1749303015035,0.79729,2507.3,2507.2,0.7973]
[1749303015232,0.79735,2507.1,2507.0,0.6607]
[1749303015728,1.49413,2507.2,2507.0,0.6607]
[1749303016032,0.6968,2507.2,2507.1,0.79735]
[1749303016338,0.00598599,2507.3,2507.2,0.79731]
[1749303016526,0.80326599,2507.3,2507.2,4.00511]
[1749303017535,0.00598599,2507.3,2507.2,4.00511]
[1749303018125,0.80326599,2507.3,2507.2,4.00511]
[1749303018736,0.00598599,2507.3,2507.2,4.00511]
[1749303019334,0.07489771,2507.3,2507.2,4.00511]
[1749303019837,0.07489771,2507.3,2507.2,4.70281]
[1749303022735,0.07489771,2507.3,2507.2,9.70281]
[1749303024332,0.07489771,2507.3,2507.2,4.70281]
[1749303024531,0.07489771,2507.3,2507.2,9.70281]
[1749303026428,0.07489771,2507.3,2507.2,4.70281]
[1749303027240,0.07489771,2507.3,2507.2,9.63281]
[1749303027441,0.07489771,2507.3,2507.2,11.01291]
[1749303030641,3.2078,2508.4,2507.3,1.9932]
[1749303030846,3.2078,2508.4,2508.1,0.79701]
[1749303030847,0.797,2508.2,2508.1,0.79701]
[1749303031146,2.7547,2508.3,2507.9,3.2078]
[1749303031344,2.16644,2508.1,2508.0,0.79705]
[1749303031543,0.79706,2508.0,2507.9,4.00487]
[1749303031846,2.0609,2508.0,2507.9,4.00487]
[1749303032235,2.85796,2508.0,2507.9,4.00487]
[1749303032645,2.0609,2508.0,2507.9,4.00487]
[1749303034447,2.12981172,2508.0,2507.9,4.00487]
[1749303035154,2.92687172,2508.0,2507.9,4.00487]
[1749303035341,2.92687172,2508.0,2507.9,3.2078]
[1749303037345,2.12981172,2508.0,2507.7,0.79714]
[1749303037647,0.79715,2507.8,2507.7,0.79714]
[1749303038051,2.18045,2507.8,2507.7,0.79714]
[1749303038749,1.3833,2507.8,2507.7,0.79714]
[1749303039139,0.79719,2507.6,2507.5,4.00501]
[1749303039544,1.43778,2507.7,2507.6,0.79719]
[1749303040043,1.43776,2507.7,2507.6,0.79719]
[1749303040550,0.6406,2507.7,2507.6,0.79719]
[1749303041050,1.43776,2507.7,2507.6,0.79719]
[1749303041253,0.6406,2507.7,2507.6,0.79719]
[1749303042442,0.6406,2507.7,2507.5,3.2078]
[1749303042443,0.79719,2507.6,2507.5,4.005]
[1749303042639,1.43777,2507.7,2507.6,0.79719]
[1749303043149,0.6406,2507.7,2507.6,0.79719]
[1749303044750,1.43776,2507.7,2507.6,0.79719]
[1749303045252,0.6406,2507.7,2507.6,0.79719]
[1749303045846,1.43776,2507.7,2507.6,0.79719]
[1749303046650,0.6406,2507.7,2507.6,0.79719]
[1749303050749,0.70951172,2507.7,2507.6,0.79719]
[1749303054857,0.70951172,2507.7,2507.6,4.00499]
[1749303055156,1.50667172,2507.7,2507.6,4.00499]
[1749303055357,0.79722,2507.5,2507.4,3.1607272]
[1749303055558,0.79722,2507.5,2507.4,0.79725]
[1749303055759,0.79725,2507.4,2507.3,4.00506]
[1749303056063,1.43655,2507.4,2507.3,4.00506]
[1749303056264,1.43655,2507.4,2507.3,3.2078]
[1749303056558,2.73215,2507.4,2507.3,4.00508]
[1749303056857,1.9349,2507.4,2507.3,4.00508]
[1749303057063,0.6393,2507.4,2507.3,4.00508]
[1749303060159,0.6953,2507.5,2507.4,0.79725]
[1749303060360,0.6953,2507.5,2507.4,1.48515]
[1749303060761,0.86608172,2507.7,2507.4,0.6879]
[1749303060963,0.86608172,2507.7,2507.6,3.2078]
[1749303061156,0.06891172,2507.7,2507.6,4.00499]
[1749303066967,0.06891172,2507.7,2507.6,5.40219]
[1749303074478,0.6453,2508.1,2508.0,0.79706]
[1749303074878,0.80299599,2508.2,2508.1,0.79703]
[1749303074879,0.00598599,2508.2,2508.1,0.79703]
[1749303080285,0.07489771,2508.2,2508.1,0.79703]
[1749303094404,0.6605,2508.4,2508.3,0.79697]
[1749303094699,3.2078,2508.9,2508.5,1.99225]
[1749303094892,0.646,2508.8,2508.7,0.79684]
[1749303095294,1.49426,2509.0,2508.6,0.657]
[1749303095295,0.6975,2509.0,2508.9,0.79677]
[1749303095503,0.6975,2509.0,2508.9,4.00457]
[1749303097003,2.81434,2509.0,2508.9,3.2078]
[1749303097500,2.0176,2509.0,2508.7,0.00598599]
[1749303097708,2.1169,2508.9,2508.8,0.79681]
[1749303098004,0.79681,2508.8,2508.7,0.00598599]
[1749303098198,2.79371,2508.8,2508.7,0.00598599]
[1749303100204,3.79302439,2508.8,2508.7,0.00598599]
[1749303102304,0.79693,2508.4,2508.3,3.2078]
[1749303102510,0.79703,2508.1,2508.0,3.2078]
[1749303102707,0.06891172,2508.2,2508.0,4.00486]
[1749303102911,1.3745,2508.1,2508.0,4.00486]
[1749303104913,0.06891172,2508.2,2508.1,0.79703]
[1749303107815,0.86591172,2508.2,2508.1,0.79703]
[1749303108013,2.19211172,2508.2,2508.1,0.79703]
[1749303108515,1.39511172,2508.2,2508.1,0.79703]
[1749303109118,0.06891172,2508.2,2508.1,0.79703]
[1749303109314,0.06891172,2508.2,2508.1,1.46303]
[1749303113014,0.06891172,2508.2,2508.1,3.45563]
[1749303115318,0.06891172,2508.2,2507.8,3.98561]
[1749303115528,3.2078,2507.6,2506.4,3.16489353]
[1749303115720,3.2078,2506.5,2506.1,2.6025]
[1749303116021,3.2078,2506.8,2506.1,2.6025]
[1749303116229,3.2078,2506.8,2506.5,0.79753]
[1749303116428,3.2078,2506.8,2506.4,0.00598599]
[1749303116625,3.2078,2506.8,2506.5,0.79754]
[1749303117230,3.2078,2506.8,2506.7,0.79747]
[1749303117530,0.68438599,2506.9,2506.7,0.79747]
[1749303117831,0.00598599,2506.9,2506.8,0.79744]
[1749303118524,0.00598599,2506.9,2506.6,0.7]
[1749303118730,0.00598599,2506.9,2506.8,0.79744]
[1749303119437,0.00598599,2506.9,2506.8,1.45404]
[1749303119731,0.00598599,2506.9,2506.8,2.76124]
[1749303120130,3.2078,2507.4,2507.3,0.79728]
[1749303120535,3.2078,2507.4,2507.2,4.888]
[1749303120737,3.2078,2507.4,2507.3,0.79728]
[1749303122424,0.65048599,2507.6,2507.3,0.79728]
[1749303122630,0.65048599,2507.6,2507.3,4.888]
[1749303122834,0.65048599,2507.6,2507.4,0.79722]
[1749303123031,0.65048599,2507.6,2507.5,0.79722]
[1749303123629,0.65048599,2507.6,2507.4,0.79723]
[1749303123937,0.79728,2507.3,2507.2,5.5812]
[1749303124148,0.79728,2507.3,2507.2,0.6932]
[1749303124641,0.79727,2507.4,2507.2,1.49051]
[1749303125035,1.3281,2507.5,2507.0,3.2078]
[1749303125337,4.00509,2507.3,2507.1,0.79735]
[1749303125940,3.2078,2507.3,2507.2,0.79731]
[1749303127132,0.06891172,2507.4,2506.9,3.36259]
[1749303127332,0.06891172,2507.4,2507.3,0.79728]
[1749303129739,0.06891172,2507.4,2507.3,2.11028]
[1749303131137,0.06891172,2507.4,2507.3,0.79728]
[1749303134839,0.06891172,2507.4,2507.3,2.17878]
[1749303138248,0.06891172,2507.4,2507.3,5.38658]
[1749303139644,0.06891172,2507.4,2507.3,2.17878]
[1749303140040,1.72e-06,2507.4,2507.3,5.38658]
[1749303140645,1.72e-06,2507.4,2507.3,10.38658]
[1749303141449,1.72e-06,2507.4,2507.3,5.38658]
[1749303143046,1.72e-06,2507.4,2507.3,2.17878]
[1749303143245,1.72e-06,2507.4,2507.3,20.79478]
[1749303146751,1.72e-06,2507.4,2507.3,25.71878]
[1749303148152,1.72e-06,2507.4,2507.3,2.17878]
[1749303148349,1.72e-06,2507.4,2507.3,25.71178]
[1749303149745,1.72e-06,2507.4,2507.3,2.17878]
[1749303149950,1.72e-06,2507.4,2507.3,25.70278]
[1749303150255,1.72e-06,2507.4,2507.3,25.70078]
[1749303150654,1.72e-06,2507.4,2507.3,2.17878]
[1749303150850,1.72e-06,2507.4,2507.3,25.69778]
[1749303151051,1.72e-06,2507.4,2507.3,2.17878]
[1749303151250,1.72e-06,2507.4,2507.3,25.69578]
[1749303151452,1.72e-06,2507.4,2507.3,2.17878]
[1749303151653,1.72e-06,2507.4,2507.3,25.69378]
[1749303153150,1.72e-06,2507.4,2507.3,0.79728]
[1749303153761,1.30990172,2507.4,2507.3,0.79728]
[1749303162163,0.79728,2507.3,2507.2,0.7973]
[1749303162357,2.10718172,2507.4,2507.2,0.7973]
[1749303162563,0.79728,2507.3,2507.2,0.7973]
[1749303162764,1.3795,2507.3,2507.2,0.7973]
[1749303166473,1.72e-06,2507.4,2507.3,0.79728]
[1749303181270,0.79725172,2507.4,2507.3,0.79728]
[1749303181475,1.87272701,2507.4,2507.3,0.79728]
[1749303181674,3.13742701,2507.4,2507.3,0.79728]
[1749303182986,6.34522701,2507.4,2507.3,0.79728]
[1749303186793,0.79735,2507.2,2507.1,0.79734]
[1749303186987,0.79736,2507.1,2507.0,0.79735]
[1749303187194,1.48736,2507.1,2507.0,0.79735]
[1749303187393,0.69,2507.1,2507.0,0.79735]
[1749303187595,4.69516,2507.1,2506.6,4.889]
[1749303187794,5.2627,2507.1,2507.0,0.79738]
[1749303188683,6.06005,2507.1,2507.0,0.79738]
[1749303190591,6.33835295,2507.1,2506.9,0.7974]
[1749303190796,6.33835295,2507.1,2506.7,0.6747]
[1749303190797,5.2627,2507.1,2507.0,0.79738]
[1749303191092,6.33819183,2507.1,2507.0,0.79738]
[1749303192392,6.33819183,2507.1,2506.9,0.7974]
[1749303192603,3.05747168,2507.0,2506.5,0.6845]
[1749303192794,4.00527,2506.8,2506.4,0.00598599]
[1749303192993,1.07529364,2506.7,2506.4,0.00598599]
[1749303193192,2.0431,2506.7,2506.6,0.79749]
[1749303193497,0.79752,2506.6,2506.4,0.80354599]
[1749303193792,4.00534,2506.5,2506.4,0.00598599]
[1749303194101,15.60717421,2506.5,2506.4,0.00598599]
[1749303196297,14.80963421,2506.5,2506.4,0.00598599]
[1749303196598,8.7532,2506.5,2506.4,0.80355599]
[1749303200701,3.8642,2506.5,2506.4,0.80355599]
[1749303201101,3.93311172,2506.5,2506.4,0.80355599]
[1749303202804,4.73065172,2506.5,2506.4,0.80355599]
[1749303203004,10.19791172,2506.5,2505.4,3.2078]
[1749303203204,4.00555,2505.9,2505.8,0.79776]
[1749303203405,3.2078,2505.9,2505.8,0.79776]
[1749303205406,4.65743,2505.9,2505.8,0.79776]
[1749303205706,3.8597,2505.9,2505.6,0.80378599]
[1749303205908,0.79779,2505.8,2505.6,0.00598599]
[1749303206102,0.79779,2505.8,2505.6,0.80378599]
[1749303206908,0.79779,2505.7,2505.6,0.00598599]
[1749303207303,5.68579,2505.7,2505.6,0.00598599]
[1749303207704,0.79795,2505.2,2505.1,0.6838]
[1749303208001,4.00574,2505.3,2505.1,1.48177]
[1749303208203,3.2078,2505.3,2505.1,0.6838]
[1749303208798,3.2078,2505.3,2505.1,1.48177]
[1749303209008,3.2078,2505.3,2505.2,0.79795]
[1749303209398,4.00572,2505.3,2505.2,0.79795]
[1749303209803,3.2078,2505.3,2505.2,0.79795]
[1749303210508,8.0958,2505.3,2505.2,0.79795]
[1749303211503,8.89372,2505.3,2505.2,0.79795]
[1749303212008,8.0958,2505.3,2505.2,0.79795]
[1749303214011,8.0958,2505.3,2504.9,0.00598599]
[1749303214507,0.79802,2505.0,2504.9,0.00598599]
[1749303214911,4.00582,2505.0,2504.9,0.80403599]
[1749303215113,3.2078,2505.0,2504.9,0.80403599]
[1749303216414,4.00582,2505.0,2504.9,0.80403599]
[1749303216603,4.00582,2505.0,2504.9,0.00598599]
[1749303217008,4.00582,2505.0,2504.9,0.80403599]
[1749303217405,4.00582,2505.0,2504.9,0.00598599]
[1749303217604,1.99521,2504.8,2504.1,0.79828]
[1749303217808,4.00602,2504.4,2504.3,0.79824]
[1749303218014,3.2078,2504.4,2504.2,0.79826]
[1749303218205,6.88463,2504.3,2503.6,3.2078]
[1749303218411,4.00617,2503.9,2503.3,3.2078]
[1749303218613,3.21378599,2503.9,2503.8,0.7984]
[1749303219114,3.21378599,2503.9,2503.4,1.3247]
[1749303219417,3.21378599,2503.9,2503.8,0.7984]